[Event "Cracovia Festival-A 2023"]
[Site "Krakow"]
[Date "2023.12.30"]
[Round "4.49"]
[White "Hnatyshyn, Anastasiia"]
[Black "Gaurav Rajesh Zagade"]
[Result "1/2-1/2"]
[ECO "B31"]
[WhiteElo "2152"]
[BlackElo "2126"]
[Annotator "RC"]
[PlyCount "128"]
[EventDate "2023.12.24"]
[EventType "swiss"]
[EventCountry "POL"]
[SourceTitle "playchess.com"]
[Source "ChessBase"]
[SourceQuality "1"]
[TimeControl "40/5400+30:1800+30"]

1. e4 {[%emt 0:00:03]} c5 {[%emt 0:00:09]} 2. Nf3 {[%emt 0:00:07]} Nc6 {[%emt 0:00:05]} 3. Bb5 {[%emt 0:00:06]} g6 {[%emt 0:00:07]} 4. Bxc6 {[%emt 0:00:07]} dxc6 {[%emt 0:00:08]} 5. d3 {[%emt 0:00:04]} Bg7 {[%emt 0:00:08]} 6. h3 {[%emt 0:00:07]} Qc7 {[%emt 0:00:15]} 7. a4 {[%emt 0:00:21]} a5 {[%emt 0:00:40]} 8. Na3 {[%emt 0:01:03]} e5 {[%emt 0:04:12]} 9. O-O {[%emt 0:01:03]} Ne7 {[%emt 0:07:44]} 10. Be3 {[%emt 0:02:02]} b6 {[%emt 0:00:21]} 11. Nc4 {[%emt 0:01:08]} Be6 {[%emt 0:00:52]} 12. Nfd2 {[%emt 0:02:04]} O-O {[%emt 0:15:07]} 13. f4 {[%emt 0:05:57]} f5 {[%emt 0:06:56]} 14. fxe5 {[%emt 0:08:49]} fxe4 {[%emt 0:01:32]} 15. Bf4 {[%emt 0:12:18]} exd3 {[%emt 0:10:34]} 16. cxd3 {[%emt 0:00:46]} Rad8 {[%emt 0:14:21]} 17. Qe2 {[%emt 0:04:52]} Nf5 {[%emt 0:00:57]} 18. Rae1 {[%emt 0:02:44]} Nd4 {[%emt 0:00:54]} 19. Qd1 {[%emt 0:00:20]} Rd5 {[%emt 0:09:50]} 20. Bh2 {[%emt 0:06:20]} Rxf1+ {[%emt 0:00:51]} 21. Nxf1 {[%emt 0:00:20]} Rd8 {[%emt 0:01:58]} 22. Nfe3 {[%emt 0:05:45]} Rf8 {[%emt 0:02:26]} 23. Ng4 {[%emt 0:04:56]} Qd8 {[%emt 0:01:02]} 24. Nd6 {[%emt 0:06:32]} Qg5 {[%emt 0:02:38]} 25. Ne4 {[%emt 0:00:43]} Bxg4 {[%emt 0:00:37]} 26. hxg4 {[%emt 0:03:52]} Qe7 {[%emt 0:00:55]} 27. Nd2 {[%emt 0:07:42]} Bh6 {[%emt 0:04:36]} 28. Ne4 {[%emt 0:06:07]} Kh8 {[%emt 0:01:51]} 29. Rf1 {[%emt 0:00:53]} Bg7 {[%emt 0:01:14]} 30. Nd6 {[%emt 0:02:02]} Kg8 {[%emt 0:01:12]} 31. Qe1 {[%emt 0:02:29]} Rxf1+ {[%emt 0:01:57]} 32. Kxf1 {[%emt 0:00:54]} Ne6 {[%emt 0:03:12]} 33. Qe4 {[%emt 0:02:12]} Qd7 {[%emt 0:00:39]} 34. Qc4 {[%emt 0:01:09]} Bf8 {[%emt 0:01:09]} 35. Qa6 {[%emt 0:05:08]} Bxd6 {[%emt 0:00:53]} 36. exd6 {[%emt 0:00:01]} Nd4 {[%emt 0:01:48]} 37. Qa8+ {[%emt 0:01:16]} Kf7 {[%emt 0:00:14]} 38. Qh8 {[%emt 0:01:29]} Ke6 {[%emt 0:02:51]} 39. Qe5+ {[%emt 0:02:58]} Kf7 {[%emt 0:00:05]} 40. Qh8 {[%emt 0:00:00]} Ke6 {[%emt 0:00:00]} 41. Qe5+ {[%emt 0:15:05]} Kf7 {[%emt 0:00:52]} 42. Bg1 {[%emt 0:00:53]} Qe6 {[%emt 0:09:04]} 43. Bxd4 {[%emt 0:01:24]} cxd4 {[%emt 0:00:06]} 44. Qh2 {[%emt 0:01:10]} Qf6+ {[%emt 0:01:12]} 45. Ke2 {[%emt 0:02:16]} Ke6 {[%emt 0:00:27]} 46. Qxh7 {[%emt 0:03:46]} Kxd6 {[%emt 0:00:08]} 47. Qh6 {[%emt 0:01:23]} Qf7 {[%emt 0:04:17]} 48. g3 {[%emt 0:05:06]} Qe6+ {[%emt 0:01:34]} 49. Kf3 {[%emt 0:00:45]} Kc5 {[%emt 0:04:36]} 50. Qf8+ {[%emt 0:03:54]} Qd6 {[%emt 0:00:40]} 51. Qxd6+ {[%emt 0:02:44]} Kxd6 {[%emt 0:00:05]} 52. Ke4 {[%emt 0:00:02]} c5 {[%emt 0:01:37]} 53. g5 {[%emt 0:00:52]} Ke6 {[%emt 0:03:58]} 54. b3 {[%emt 0:00:20]} Kd6 {[%emt 0:00:10]} 55. g4 {[%emt 0:00:47]} Ke6 {[%emt 0:00:08]} 56. Kf3 {[%emt 0:00:33]} Ke5 {[%emt 0:00:04]} 57. Kg3 {[%emt 0:00:03]} Kd6 {[%emt 0:01:45]} 58. Kf3 {[%emt 0:00:30]} Kc6 {[%emt 0:01:43]} 59. Ke4 {[%emt 0:00:19]} b5 {[%emt 0:02:17]} 60. Ke5 {[%emt 0:00:09]} bxa4 {[%emt 0:01:40]} 61. bxa4 {[%emt 0:00:05]} Kc7 {[%emt 0:00:14]} 62. Kd5 {[%emt 0:00:34]} Kb6 {[%emt 0:00:05]} 63. Ke4 {[%emt 0:00:13]} Kc6 {[%emt 0:00:57]} 64. Ke5 {[%emt 0:00:06]} Kc7 {[%emt 0:02:25]} 1/2-1/2

[Event "Cracovia Festival-A 2023"]
[Site "Krakow"]
[Date "2023.12.30"]
[Round "4.50"]
[White "Kovalevsky, Stanislav"]
[Black "Krainski, Aleksander"]
[Result "1-0"]
[ECO "C41"]
[WhiteElo "2163"]
[BlackElo "2102"]
[Annotator "ChessBase"]
[PlyCount "43"]
[EventDate "2023.12.24"]
[EventType "swiss"]
[EventCountry "POL"]
[SourceTitle "playchess.com"]
[Source "ChessBase"]
[SourceQuality "1"]
[TimeControl "40/5400+30:1800+30"]

1. e4 {[%emt 0:00:02]} e5 {[%emt 0:00:16]} 2. Nf3 {[%emt 0:00:07]} d6 {[%emt 0:00:05]} 3. d4 {[%emt 0:04:30]} Nf6 {[%emt 0:00:13]} 4. Nc3 {[%emt 0:04:04]} Nc6 {[%emt 0:00:22]} 5. h3 {[%emt 0:12:58]} Be7 {[%emt 0:03:44]} 6. Be3 {[%emt 0:01:09]} O-O {[%emt 0:00:20]} 7. d5 {[%emt 0:03:56]} Nb8 {[%emt 0:00:17]} 8. g4 {[%emt 0:03:07]} c6 {[%emt 0:02:02]} 9. g5 {[%emt 0:06:30]} Nfd7 {[%emt 0:01:46]} 10. a4 {[%emt 0:12:04]} a5 {[%emt 0:00:31]} 11. h4 {[%emt 0:07:40]} Na6 {[%emt 0:01:21]} 12. Nd2 {[%emt 0:11:59]} Ndc5 {[%emt 0:02:50]} 13. Bc4 {[%emt 0:01:44]} Nb4 {[%emt 0:05:56]} 14. Rg1 {[%emt 0:06:30]} Kh8 {[%emt 0:04:21]} 15. h5 {[%emt 0:04:24]} cxd5 {[%emt 0:10:35]} 16. Nxd5 {[%emt 0:00:28]} Nxd5 {[%emt 0:00:28]} 17. Bxd5 {[%emt 0:00:01]} Be6 {[%emt 0:11:29]} 18. g6 {[%emt 0:00:02]} Bxd5 {[%emt 0:00:31]} 19. exd5 {[%emt 0:00:01]} Nd7 {[%emt 0:05:40]} 20. Ne4 {[%emt 0:04:12]} f5 {[%emt 0:03:27]} 21. h6 {[%emt 0:03:03]} f4 {[%emt 0:17:48]} 22. Qh5 {[%emt 0:02:52]} 1-0

[Event "Cracovia Festival-A 2023"]
[Site "Krakow"]
[Date "2023.12.31"]
[Round "5.1"]
[White "Janik, Igor"]
[Black "Gumularz, Szymon"]
[Result "1/2-1/2"]
[ECO "C67"]
[WhiteElo "2514"]
[BlackElo "2576"]
[Annotator "TA"]
[PlyCount "27"]
[EventDate "2023.12.24"]
[EventType "swiss"]
[EventCountry "POL"]
[SourceTitle "playchess.com"]
[Source "ChessBase"]
[SourceQuality "1"]
[TimeControl "40/5400+30:1800+30"]

{[%evp 23,27,0,0,0,0,0]} 1. e4 {[%emt 0:06:02]} e5 {[%emt 0:00:17]} 2. Nf3 {[%emt 0:00:03]} Nc6 {[%emt 0:00:09]} 3. Bb5 {[%emt 0:00:06]} Nf6 {[%emt 0:00:05]} 4. O-O {[%emt 0:00:26]} Nxe4 {[%emt 0:00:03]} 5. d4 {[%emt 0:00:05][%cal Bd2d4,Bd4e5][%mdl 32]} Nd6 {[%emt 0:00:06]} 6. dxe5 {[%emt 0:00:03]} Nxb5 {[%emt 0:00:05]} 7. a4 {[%emt 0:00:02]} Nbd4 {[%emt 0:00:04]} 8. Nxd4 {[%emt 0:00:03]} Nxd4 {[%emt 0:00:03]} 9. Qxd4 {[%emt 0:00:04]} d5 {[%emt 0:00:02]} 10. exd6 {[%emt 0:00:04]} Qxd6 {[%emt 0:00:03]} 11. Qe4+ {[%emt 0:00:04]} Qe6 {[%emt 0:00:02]} 12. Qd4 {[%emt 0:00:03]} Qd6 {[%emt 0:00:03] [#]} 13. Qe4+ $146 {[%emt 0:00:02] C67: Ruy Lopez: Berlin Defence: 4 0-0 Nxe4.} ({Predecessor:} 13. Qe3+ Be6 14. Nc3 a6 15. Rd1 Qc6 16. Rd3 Be7 17. Ne2 Bf6 18. Nd4 Bxd4 19. Qxd4 f6 20. Bf4 O-O {½-½ Li,C (2658)-Wang,Y (2674) CHN-chT DivA 2023 (2.4)}) 13... Qe6 {[%emt 0:00:02]} 14. Qd4 {[%emt 0:00:03] A rather calm draw.} 1/2-1/2

[Event "Cracovia Festival-A 2023"]
[Site "Krakow"]
[Date "2023.12.31"]
[Round "5.2"]
[White "Keinanen, Toivo"]
[Black "Akbas, Umut Ata"]
[Result "1/2-1/2"]
[ECO "A13"]
[WhiteElo "2522"]
[BlackElo "2446"]
[Annotator "TA"]
[PlyCount "43"]
[EventDate "2023.12.24"]
[EventType "swiss"]
[EventCountry "POL"]
[SourceTitle "playchess.com"]
[Source "ChessBase"]
[SourceQuality "1"]
[TimeControl "40/5400+30:1800+30"]

{[%evp 9,43,10,38,0,0,-10,0,0,0,0,0,0,0,1,12,-16,-16,-24,-29,-29,-38,0,0,-170,-147,-191,-196,-169,-152,-143,-152,-127,-105,-112,-107,-196]} 1. c4 {[%emt 0:00:05]} e6 {[%emt 0:09:24]} 2. g3 {[%emt 0:00:17]} d5 {[%emt 0:00:09]} 3. Bg2 {[%emt 0:00:06]} d4 {[%emt 0:00:08]} 4. d3 {[%emt 0:09:21]} Nf6 {[%emt 0:00:53]} 5. Nf3 {[%emt 0:00:48]} Bb4+ {[%emt 0:02:35]} 6. Nbd2 {[%emt 0:00:37] A13: English Opening: 1...e6.} (6. Bd2 $14 {feels stronger.} a5 7. O-O) 6... a5 $11 {[%emt 0:06:45]} 7. Ne5 {[%emt 0:00:24] [#] Inhibits Nc6.} Nfd7 $146 {[%emt 0:16:55]} ({Predecessor:} 7... Nbd7 8. Nxd7 Nxd7 9. O-O O-O 10. Nf3 e5 11. e3 dxe3 12. Bxe3 c6 13. Qc2 Bd6 {0-1 Giri,A (2764)-Aronian,L (2759) Julius Baer GenCup Prelim rapid 2022 (12)}) 8. Nxd7 {[%emt 0:02:55] The position is equal.} Qxd7 {[%emt 0:00:12]} 9. O-O {[%emt 0:01:50]} Nc6 {[%emt 0:03:12]} 10. Qa4 {[%emt 0:08:19]} Ra6 {[%emt 0:09:36]} 11. Nb3 {[%emt 0:05:25]} O-O {[%emt 0:04:03]} 12. a3 {[%emt 0:17:17]} Be7 {[%emt 0:07:44]} 13. Bxc6 {[%emt 0:03:25]} bxc6 {[%emt 0:00:27][%cal Bb7c6,Bc6c5][%mdl 32]} 14. Nxa5 {[%emt 0:01:08]} e5 {[%emt 0:04:05]} 15. b4 {[%emt 0:02:07]} Qh3 {[%emt 0:08:19]} 16. Qc2 $2 {[%emt 0:05:50] [#]} (16. c5 $1 $11 {and White stays safe.}) 16... c5 $19 {[%emt 0:04:38] ...f5 is the strong threat.} 17. e4 {[%emt 0:04:47]} f5 {[%emt 0:07:07]} ({Stronger than} 17... cxb4 18. axb4 f5 19. exf5 Bxb4 20. Bd2 Bxd2 21. Qxd2 $17) 18. exf5 {[%emt 0:01:50]} Rxf5 {[%emt 0:03:53]} 19. f3 {[%emt 0:04:30]} cxb4 {[%emt 0:04:00]} 20. axb4 {[%emt 0:00:54]} Bxb4 {[%emt 0:00:18]} 21. Bd2 {[%emt 0:03:28]} Bf8 {[%emt 0:00:31]} 22. Rae1 {[%emt 0:05:41] Weighted Error Value: White=0.23 (precise) /Black=0.03 (flawless)} (22. Qd1 $17) 1/2-1/2

[Event "Cracovia Festival-A 2023"]
[Site "Krakow"]
[Date "2023.12.31"]
[Round "5.3"]
[White "Dzida, Kamil"]
[Black "Soffer, Ram"]
[Result "1/2-1/2"]
[ECO "D18"]
[WhiteElo "2396"]
[BlackElo "2444"]
[Annotator "RC"]
[PlyCount "43"]
[EventDate "2023.12.24"]
[EventType "swiss"]
[EventCountry "POL"]
[SourceTitle "playchess.com"]
[Source "ChessBase"]
[SourceQuality "1"]
[TimeControl "40/5400+30:1800+30"]

1. d4 {[%emt 0:04:10]} d5 {[%emt 0:03:10]} 2. c4 {[%emt 0:00:48]} c6 {[%emt 0:00:10]} 3. Nf3 {[%emt 0:00:08]} Nf6 {[%emt 0:00:08]} 4. Nc3 {[%emt 0:00:08]} dxc4 {[%emt 0:00:14]} 5. a4 {[%emt 0:00:08]} Bf5 {[%emt 0:00:09]} 6. e3 {[%emt 0:00:06]} e6 {[%emt 0:00:13]} 7. Bxc4 {[%emt 0:00:06]} Bb4 {[%emt 0:00:21]} 8. O-O {[%emt 0:00:08]} Nbd7 {[%emt 0:00:25]} 9. Qe2 {[%emt 0:00:09]} O-O {[%emt 0:01:23]} 10. e4 {[%emt 0:00:11]} Bg6 {[%emt 0:00:03]} 11. Bd3 {[%emt 0:00:10]} Bh5 {[%emt 0:00:11]} 12. e5 {[%emt 0:00:07]} Nd5 {[%emt 0:00:04]} 13. Nxd5 {[%emt 0:00:08]} cxd5 {[%emt 0:00:05]} 14. Qe3 {[%emt 0:00:08]} Re8 {[%emt 0:01:22]} 15. Ne1 {[%emt 0:00:08]} f5 {[%emt 0:08:43]} 16. Bd2 {[%emt 0:07:45]} Bxd2 {[%emt 0:07:52]} 17. Qxd2 {[%emt 0:00:11]} Nb8 {[%emt 0:00:59]} 18. Rc1 {[%emt 0:12:11]} Re7 {[%emt 0:03:02]} 19. Qc3 {[%emt 0:24:20]} Be8 {[%emt 0:11:36]} 20. Bb5 {[%emt 0:02:03]} a6 {[%emt 0:05:35]} 21. Bxe8 {[%emt 0:01:01]} Qxe8 {[%emt 0:00:08]} 22. b3 {[%emt 0:06:44]} 1/2-1/2

[Event "Cracovia Festival-A 2023"]
[Site "Krakow"]
[Date "2023.12.31"]
[Round "5.4"]
[White "Puranik, Abhimanyu"]
[Black "Steindl, Johannes"]
[Result "1-0"]
[ECO "B69"]
[WhiteElo "2627"]
[BlackElo "2334"]
[Annotator "TA"]
[PlyCount "55"]
[EventDate "2023.12.24"]
[EventType "swiss"]
[EventCountry "POL"]
[SourceTitle "playchess.com"]
[Source "ChessBase"]
[SourceQuality "1"]
[TimeControl "40/5400+30:1800+30"]

{[%evp 22,55,35,54,58,36,75,7,18,22,50,9,5,-26,-29,-70,-64,-71,27,-68,475,465,437,452,504,477,420,424,528,442,782,780,758,729,1836,1783]} 1. e4 {[%emt 0:00:06]} c5 {[%emt 0:00:05]} 2. Nf3 {[%emt 0:00:05]} d6 {[%emt 0:00:02]} 3. d4 {[%emt 0:00:05]} cxd4 {[%emt 0:00:03]} 4. Nxd4 {[%emt 0:00:05]} Nf6 {[%emt 0:00:03]} 5. Nc3 {[%emt 0:00:06]} Nc6 {[%emt 0:00:05]} 6. Bg5 {[%emt 0:00:19]} e6 {[%emt 0:00:07]} 7. Qd2 {[%emt 0:00:16]} a6 {[%emt 0:00:06]} 8. O-O-O {[%emt 0:00:40]} Bd7 {[%emt 0:00:03]} 9. f4 {[%emt 0:01:48][%cal Bf2f4,Bf4f5][%mdl 32]} Be7 {[%emt 0:00:22]} 10. Nf3 {[%emt 0:00:29]} b5 {[%emt 0:00:05]} 11. Bxf6 {[%emt 0:02:52]} gxf6 {[%emt 0:00:04]} 12. Kb1 {[%emt 0:00:34]} Qa5 {[%emt 0:00:39] [#] B69: Sicilian: Richter-Rauzer: 7...a6 8 0-0-0 Bd7 9 f4 Be7 10 Nf3 b5 11 Bxf6.} 13. f5 $1 {[%emt 0:01:24]} Rc8 {[%emt 0:00:11]} (13... h5 14. Nd4) 14. g3 {[%emt 0:08:16]} ({White should play} 14. Qh6 $16) 14... h5 $11 {[%emt 0:00:44] The position is equal.} 15. Bd3 $5 {[%emt 0:25:38][%mdl 4] [#] An interesting side line.} Nb4 $146 {[%emt 0:12:38]} ({Predecessor:} 15... Ne5 16. Rhf1 Qb6 17. Ne2 Nxf3 18. Rxf3 e5 19. Nc3 Bc6 20. Be2 Qc7 21. Rd3 Qb6 {1-0 Blohberger,F (2490)-Schwabeneder,F (2438) Vienna GM 2021 (9)}) 16. fxe6 {[%emt 0:01:47]} (16. Nh4 $5 {[%cal Rf5e6]}) 16... fxe6 {[%emt 0:00:15]} 17. e5 {[%emt 0:02:10] [#]} Rxc3 $1 {[%emt 0:06:32]} 18. Bg6+ {[%emt 0:00:23]} (18. Qxc3 Qxa2+) 18... Kd8 $1 {[%emt 0:00:11]} 19. Qxc3 {[%emt 0:00:03]} Qxa2+ {[%emt 0:00:08]} 20. Kc1 {[%emt 0:00:03] Chess con chili.} dxe5 {[%emt 0:01:24][%mdl 8192] [#] Black cannot hold the game after this.} (20... Nd5 $2 21. Rxd5 Qxd5 22. exd6 (22. exf6 Bf8 $18) 22... Qxd6 23. Ng5 $18) (20... Bf8 $1 $15 {stays ahead.} 21. Rxd6 Bxd6 22. exd6 Nd5) 21. Nxe5 $1 $18 {[%emt 0:02:44][%mdl 512]} fxe5 {[%emt 0:12:11]} 22. Qxe5 {[%emt 0:00:22][%cal Re5b8]} Nd5 {[%emt 0:00:03] Strongly threatening ...Bf6.} (22... Qa1+ $2 23. Kd2 Qa2 24. Qxh8+ $18) 23. Qxh8+ {[%emt 0:08:50]} Kc7 {[%emt 0:00:04] ( -> ...Bg5+)} 24. Qe5+ {[%emt 0:01:49]} (24. Bxh5 $2 Bg5+ 25. Rd2 Qa1#) 24... Kc8 {[%emt 0:00:02] White is clearly winning.} 25. Be8 {[%emt 0:05:38]} (25. Bxh5 $2 Bf6 $19) 25... Bb4 {[%emt 0:21:37]} (25... Bf6 $142 26. Bxd7+ (26. Qxh5 Qxb2+ 27. Kd2 Qd4+ 28. Ke1 Qe4+ 29. Kf2 Bd4+ 30. Rxd4 Qxd4+ 31. Kg2 Qe4+ 32. Kg1 Qe1+ 33. Kg2 Qe4+ 34. Kg1 Qe1+ 35. Kg2 Qe4+ $11) 26... Kb7 27. Bc6+ {[%mdl 64] Double Attack} (27. Qxe6 $2 {is a self mate.} Bg5+) (27. Qxh5 Qxb2+ 28. Kd2 Qb4+ 29. Ke2 Qe4+ 30. Kf2 Be7 $11) 27... Ka7 28. Rxd5 (28. Bxd5 Qa1+ 29. Kd2 Qa5+ 30. c3 Bxe5 $11) 28... Bxe5 29. Rxe5 Qa1+ 30. Kd2 Qxb2) 26. Bxd7+ {[%emt 0:00:53]} (26. Qxh5 $2 Qa1#) 26... Kxd7 {[%emt 0:00:03]} 27. c3 {[%emt 0:02:16]} (27. Qxh5 $2 Qa1#) 27... Bf8 {[%emt 0:00:20]} 28. Rhe1 {[%emt 0:00:51] Ingenious play by Puranik!   Weighted Error Value: White=0.37/Black=0.58} 1-0

[Event "Cracovia Festival-A 2023"]
[Site "Krakow"]
[Date "2023.12.31"]
[Round "5.5"]
[White "Polak, Tomas"]
[Black "Zdybel, Przemyslaw"]
[Result "1-0"]
[ECO "A05"]
[WhiteElo "2517"]
[BlackElo "2180"]
[Annotator "TA"]
[PlyCount "93"]
[EventDate "2023.12.24"]
[EventType "swiss"]
[EventCountry "POL"]
[SourceTitle "playchess.com"]
[Source "ChessBase"]
[SourceQuality "1"]
[TimeControl "40/5400+30:1800+30"]

{[%evp 22,93,50,51,55,62,53,56,62,56,47,48,59,52,52,48,52,52,68,39,37,19,27,8,29,0,0,0,9,0,1,3,10,0,0,0,0,0,0,0,0,0,37,20,53,6,12,12,341,343,322,300,1263,917,2371,1919,1830,1400,1228,1155,29971,29972,29969,29968,29973,29974,29974,29975,29975,29976,29976,29977,29983,29984]} 1. Nf3 {[%emt 0:03:57]} Nf6 {[%emt 0:01:19]} 2. c4 {[%emt 0:00:07]} g6 {[%emt 0:00:52]} 3. Nc3 {[%emt 0:00:07]} c5 {[%emt 0:03:06]} 4. e4 {[%emt 0:00:54]} d6 {[%emt 0:00:55]} 5. d4 {[%emt 0:00:13]} cxd4 {[%emt 0:01:06]} 6. Nxd4 {[%emt 0:00:05]} Nc6 {[%emt 0:00:36]} 7. Be2 {[%emt 0:00:17]} Bg7 {[%emt 0:00:24]} 8. Be3 {[%emt 0:00:13]} O-O {[%emt 0:00:55]} 9. O-O {[%emt 0:00:30]} Bd7 {[%emt 0:01:39]} 10. Qd2 {[%emt 0:00:20]} a5 {[%emt 0:03:21]} 11. f3 {[%emt 0:02:05]} Nxd4 {[%emt 0:02:16]} 12. Bxd4 {[%emt 0:00:07]} (12. Qxd4 Ng4 13. Qd3 Nxe3 14. Qxe3 a4 $11) 12... a4 {[%emt 0:00:06] B38: Sicilian: Maroczy Bind with 5...Bg7 and 7...0-0.} 13. b4 {[%emt 0:04:43]} axb3 {[%emt 0:02:52]} 14. axb3 {[%emt 0:00:20]} Be6 {[%emt 0:02:31] White is slightly better.} 15. Rab1 {[%emt 0:10:44] White is much more active.} Nd7 {[%emt 0:04:13]} 16. Be3 {[%emt 0:00:18]} Nc5 {[%emt 0:31:52]} 17. Rfc1 {[%emt 0:13:20]} Ra3 {[%emt 0:04:13]} 18. Bd1 {[%emt 0:01:31] [#]} Qa8 $146 {[%emt 0:00:31]} ({Predecessor:} 18... Bd7 19. b4 Ne6 20. Bb3 Re8 21. Bf2 Be5 22. Be3 Bg7 23. f4 Bc6 24. Nd5 Nf8 25. Re1 Nd7 {1-0 Kononenko,D (2608)-Petrova,K (2297) CZE-chT rap Pardubice 2012 (7.1)}) 19. b4 {[%emt 0:15:58]} Nd7 {[%emt 0:01:21]} 20. Bb3 {[%emt 0:00:26] Strongly threatening Nb5.} Bxc3 {[%emt 0:09:42]} 21. Rxc3 {[%emt 0:07:11]} (21. Qxc3 {looks sharper.} Rc8 22. Bh6 Nf6 23. Ra1) 21... Rc8 {[%emt 0:02:24]} 22. Bd4 {[%emt 0:08:47]} Ra1 {[%emt 0:03:39]} 23. Qb2 {[%emt 0:10:44]} Rxb1+ {[%emt 0:00:16]} 24. Qxb1 {[%emt 0:00:01]} Qa6 {[%emt 0:01:03][%cal Re6c4]} 25. Qc1 {[%emt 0:01:10]} Ra8 {[%emt 0:01:26]} 26. Rc2 {[%emt 0:08:17] Ra2 would be deadly.} Qc6 {[%emt 0:01:47]} 27. h4 $40 {[%emt 0:03:35][%cal Bh2h4,Bh4h5,Bh5h6][%mdl 160] White mounts an attack.} f6 $1 {[%emt 0:01:07]} 28. Kh2 {[%emt 0:02:28]} Kg7 {[%emt 0:00:41]} 29. h5 {[%emt 0:00:30]} Ne5 {[%emt 0:01:50]} 30. h6+ {[%emt 0:00:17]} Kg8 {[%emt 0:00:25]} 31. Qb2 {[%emt 0:01:41]} Qd7 {[%emt 0:08:39]} 32. Bxe5 {[%emt 0:00:24]} fxe5 {[%emt 0:00:12] [#]} 33. f4 {[%emt 0:01:11]} Bf7 $1 $11 {[%emt 0:00:28]} 34. c5 {[%emt 0:02:54]} Rf8 {[%emt 0:01:13][%mdl 8192] Black cannot hold the game after this.} (34... exf4 $2 35. Qg7#) (34... Qg4 $11 {and Black stays safe.}) 35. fxe5 $18 {[%emt 0:00:26][%cal Oe5e6] Threatening mate with e6!} Qg4 {[%emt 0:00:22] [#]} 36. Rf2 {[%emt 0:00:24] Wards off Qf4+. e6 would kill now.} ({And not} 36. exd6 Qh5+ 37. Kg1 Qd1+ 38. Kh2 Qh5+ 39. Kg1 Qd1+ 40. Kh2 Qh5+ $11) ({Weaker is} 36. cxd6 Qh4+ 37. Kg1 Qe1+ 38. Kh2 Qh4+ 39. Kg1 Qe1+ 40. Kh2 Qh4+ $11) 36... Qh4+ $2 {[%emt 0:04:08]} (36... dxe5 37. Qxe5 Qh4+ 38. Kg1 Qxh6) 37. Kg1 {[%emt 0:00:03] White wants to mate with e6.} dxe5 {[%emt 0:01:10]} 38. Rxf7 {[%emt 0:01:14]} Rxf7 {[%emt 0:00:10]} 39. Bxf7+ {[%emt 0:00:08]} ({Not} 39. Qxe5 Qf2+ 40. Kh1 Qh4+ 41. Kg1 Qe1+ 42. Kh2 Qh4+ 43. Kg1 $11) 39... Kxf7 {[%emt 0:00:03][%mdl 4096] Endgame KQ-KQ} 40. Qf2+ {[%emt 0:00:00]} Qf4 {[%emt 0:00:00]} 41. Qxf4+ {[%emt 0:21:33] White mates.} exf4 {[%emt 0:00:21] KP-KP} 42. b5 {[%emt 0:00:05]} Ke8 {[%emt 0:18:34]} 43. e5 {[%emt 0:00:30]} g5 {[%emt 0:00:57]} 44. Kf2 {[%emt 0:01:09]} g4 {[%emt 0:00:28]} 45. Ke2 {[%emt 0:00:22]} Kd7 {[%emt 0:02:47]} 46. Kd3 {[%emt 0:00:42]} Ke6 {[%emt 0:00:32] [#]} 47. c6 $1 {[%emt 0:00:17] Weighted Error Value: White=0.04 (flawless) /Black=0.33} 1-0

[Event "Cracovia Festival-A 2023"]
[Site "Krakow"]
[Date "2023.12.31"]
[Round "5.6"]
[White "Sernecki, Franciszek"]
[Black "Pajeken, Jakob Leon"]
[Result "1/2-1/2"]
[ECO "E16"]
[WhiteElo "2325"]
[BlackElo "2428"]
[Annotator "RC"]
[PlyCount "44"]
[EventDate "2023.12.24"]
[EventType "swiss"]
[EventCountry "POL"]
[SourceTitle "playchess.com"]
[Source "ChessBase"]
[SourceQuality "1"]
[TimeControl "40/5400+30:1800+30"]

1. d4 {[%emt 0:00:37]} Nf6 {[%emt 0:00:06]} 2. c4 {[%emt 0:00:31]} e6 {[%emt 0:00:04]} 3. Nf3 {[%emt 0:00:04]} b6 {[%emt 0:00:04]} 4. g3 {[%emt 0:00:10]} Bb7 {[%emt 0:00:04]} 5. Bg2 {[%emt 0:00:05]} Bb4+ {[%emt 0:00:04]} 6. Bd2 {[%emt 0:00:21]} c5 {[%emt 0:00:20]} 7. Bxb4 {[%emt 0:02:46]} cxb4 {[%emt 0:01:23]} 8. O-O {[%emt 0:02:11]} O-O {[%emt 0:00:04]} 9. a3 {[%emt 0:01:31]} bxa3 {[%emt 0:00:05]} 10. Nxa3 {[%emt 0:00:42]} a5 {[%emt 0:00:23]} 11. Nb5 {[%emt 0:01:43]} Na6 {[%emt 0:00:16]} 12. b3 {[%emt 0:03:22]} d6 {[%emt 0:04:16]} 13. Qd2 {[%emt 0:07:26]} Qe7 {[%emt 0:02:57]} 14. Rfd1 {[%emt 0:08:37]} Nb4 {[%emt 0:07:47]} 15. Rac1 {[%emt 0:03:55]} Bc6 {[%emt 0:07:09]} 16. Nc3 {[%emt 0:05:13]} Ne4 {[%emt 0:01:51]} 17. Nxe4 {[%emt 0:09:02]} Bxe4 {[%emt 0:00:06]} 18. Ne1 {[%emt 0:02:33]} Bxg2 {[%emt 0:07:09]} 19. Nxg2 {[%emt 0:04:07]} Rac8 {[%emt 0:01:53]} 20. Nf4 {[%emt 0:06:34]} Rfd8 {[%emt 0:05:02]} 21. Nd3 {[%emt 0:02:27]} Nxd3 {[%emt 0:06:33]} 22. Qxd3 {[%emt 0:00:24]} Qg5 {[%emt 0:01:49]} 1/2-1/2

[Event "Cracovia Festival-A 2023"]
[Site "Krakow"]
[Date "2023.12.31"]
[Round "5.7"]
[White "Lewicki, Miroslaw"]
[Black "Schwabeneder, Florian"]
[Result "1/2-1/2"]
[ECO "C77"]
[WhiteElo "2321"]
[BlackElo "2402"]
[Annotator "RC"]
[PlyCount "24"]
[EventDate "2023.12.24"]
[EventType "swiss"]
[EventCountry "POL"]
[SourceTitle "playchess.com"]
[Source "ChessBase"]
[SourceQuality "1"]
[TimeControl "40/5400+30:1800+30"]

1. e4 {[%emt 0:00:03]} e5 {[%emt 0:00:40]} 2. Nf3 {[%emt 0:00:08]} Nc6 {[%emt 0:00:06]} 3. Bb5 {[%emt 0:00:22]} a6 {[%emt 0:00:30]} 4. Ba4 {[%emt 0:00:05]} Nf6 {[%emt 0:00:33]} 5. d3 {[%emt 0:00:09]} b5 {[%emt 0:03:40]} 6. Bb3 {[%emt 0:09:10]} Be7 {[%emt 0:00:14]} 7. a4 {[%emt 0:01:59]} b4 {[%emt 0:01:10]} 8. O-O {[%emt 0:02:14]} d6 {[%emt 0:01:44]} 9. c3 {[%emt 0:01:09]} bxc3 {[%emt 0:03:00]} 10. bxc3 {[%emt 0:00:24]} O-O {[%emt 0:00:14]} 11. Nbd2 {[%emt 0:01:41]} Na5 {[%emt 0:02:38]} 12. Ba2 {[%emt 0:00:59]} c5 {[%emt 0:00:30]} 1/2-1/2